fUST/lending_fUST_20250909
["ID","MTS","AMOUNT","RATE_DAILY","PERIOD"]
[384409315,1757387455394,-484.32043581,0.00013972,2]
[384409316,1757387455403,-483.24249566,0.00013972,2]
[384409317,1757387455413,-478.37440515,0.00013972,2]
[384409318,1757387455423,-480.0,0.00013972,2]
[384409319,1757387455432,-480.0,0.00013972,2]
[384409320,1757387455442,-480.0,0.00013972,2]
[384409321,1757387455452,-480.0,0.00013972,2]
[384409322,1757387455463,-2056.8,0.00013972,2]
[384409323,1757387455473,-480.0,0.00013972,2]
[384409324,1757387455482,-480.0,0.00013972,2]
[384409325,1757387455492,-480.0,0.00013972,2]
[384409326,1757387455502,-480.0,0.00013972,2]
[384409327,1757387455511,-480.0,0.00013972,2]
[384409328,1757387455522,-480.0,0.00013972,2]
[384409329,1757387455531,-242.05011202,0.00013972,2]
[384409330,1757387455541,-480.0,0.00013972,2]
[384409331,1757387455551,-480.0,0.00013972,2]
[384409332,1757387455562,-480.0,0.00013972,2]
[384409333,1757387455571,-480.0,0.00013972,2]
[384409334,1757387455581,-446.64676718,0.00013972,2]
[384409335,1757387455591,-480.0,0.00013972,2]
[384409336,1757387455600,-480.0,0.00013972,2]
[384409337,1757387455610,-613.01,0.00013972,2]
[384409338,1757387455619,-480.0,0.00013972,2]
[384409339,1757387455629,-480.0,0.00013972,2]
[384409340,1757387455638,-706.6,0.00013972,2]
[384409341,1757387455647,-480.0,0.00013972,2]
[384409342,1757387455659,-1236.17,0.00013972,2]
[384409343,1757387455669,-733.73,0.00013972,2]
[384409344,1757387455679,-480.0,0.00013972,2]
[384409345,1757387455689,-480.0,0.00013972,2]
[384409346,1757387455699,-480.0,0.00013972,2]
[384409347,1757387455709,-1212.37,0.00013972,2]
[384409348,1757387455718,-480.0,0.00013972,2]
[384409349,1757387455728,-491.84,0.00013972,2]
[384409350,1757387455737,-1817.05,0.00013972,2]
[384409351,1757387455747,-743.24,0.00013972,2]
[384409352,1757387455757,-480.0,0.00013972,2]
[384409353,1757387455767,-201.32883382,0.00013972,2]
[384409354,1757387455777,-480.0,0.00013972,2]
[384409355,1757387455786,-482.72605779,0.00013972,2]
[384409356,1757387455796,-480.0,0.00013972,2]
[384409357,1757387455805,-480.0,0.00013972,2]
[384409358,1757387455815,-484.06168058,0.00013972,2]
[384409359,1757387455824,-480.0,0.00013972,2]
[384409360,1757387455834,-493.20641704,0.00013972,2]
[384409361,1757387455844,-480.0,0.00013972,2]
[384409362,1757387455853,-480.0,0.00013972,2]
[384409363,1757387455862,-774.52,0.00013972,2]
[384409364,1757387455871,-809.05,0.00013972,2]
[384409365,1757387455882,-480.0,0.00013972,2]
[384409366,1757387455891,-480.0,0.00013972,2]
[384409367,1757387455901,-480.0,0.00013972,2]
[384409368,1757387455910,-920.6,0.00013972,2]
[384409369,1757387455920,-480.0,0.00013972,2]
[384409370,1757387455929,-480.0,0.00013972,2]
[384409371,1757387455939,-480.0,0.00013972,2]
[384409372,1757387455949,-482.61976405,0.00013972,2]
[384409373,1757387455958,-480.0,0.00013972,2]
[384409374,1757387455968,-480.0,0.00013972,2]
[384409375,1757387455977,-482.4367576,0.00013972,2]
[384409376,1757387455987,-710.23,0.00013972,2]
[384409377,1757387455996,-480.0,0.00013972,2]
[384409378,1757387456006,-480.0,0.00013972,2]
[384409379,1757387456015,-480.0,0.00013972,2]
[384409380,1757387456025,-480.0,0.00013972,2]
[384409381,1757387456034,-480.0,0.00013972,2]
[384409382,1757387456044,-8455.28,0.00013972,2]
[384409383,1757387456053,-480.0,0.00013972,2]
[384409384,1757387456063,-480.0,0.00013972,2]
[384409385,1757387456073,-480.0,0.00013972,2]
[384409386,1757387456082,-480.0,0.00013972,2]
[384409387,1757387456091,-480.0,0.00013972,2]
[384409388,1757387456101,-480.0,0.00013972,2]
[384409389,1757387456111,-480.0,0.00013972,2]
[384409390,1757387456120,-480.0,0.00013972,2]
[384409391,1757387456130,-484.46459131,0.00013972,2]
[384409392,1757387456139,-571.84,0.00013972,2]
[384409393,1757387456149,-2758.77,0.00013972,2]
[384409394,1757387456159,-641.78,0.00013972,2]
[384409395,1757387456168,-480.0,0.00013972,2]
[384409396,1757387456178,-628.33,0.00013972,2]
[384409397,1757387456187,-480.0,0.00013972,2]
[384409398,1757387456196,-897.42,0.00013972,2]
[384409399,1757387456206,-483.2207221,0.00013972,2]
[384409400,1757387456215,-559.02,0.00013972,2]
[384409401,1757387456225,-674.08,0.00013972,2]
[384409402,1757387456235,-480.0,0.00013972,2]
[384409403,1757387456245,-480.0,0.00013972,2]
[384409404,1757387456254,-480.0,0.00013972,2]
[384409405,1757387456264,-1658.01,0.00013972,2]
[384409406,1757387456273,-1163.66,0.00013972,2]
[384409407,1757387456283,-480.0,0.00013972,2]
[384409408,1757387456293,-877.82,0.00013972,2]
[384409409,1757387456303,-488.52471416,0.00013972,2]
[384409410,1757387456312,-480.0,0.00013972,2]
[384409411,1757387456322,-622.32254108,0.00013972,2]
[384409412,1757387456331,-3848.62,0.00013972,2]
[384409413,1757387456341,-480.0,0.00013972,2]
[384409414,1757387456350,-480.0,0.00013972,2]
[384409415,1757387456360,-1179.05,0.00013972,2]
[384409416,1757387456369,-480.0,0.00013972,2]
[384409417,1757387456379,-480.0,0.00013972,2]
[384409418,1757387456389,-480.0,0.00013972,2]
[384409419,1757387456399,-480.0,0.00013972,2]
[384409420,1757387456408,-480.0,0.00013972,2]
[384409421,1757387456418,-480.0,0.00013972,2]
[384409422,1757387456427,-480.0,0.00013972,2]
[384409423,1757387456437,-480.0,0.00013972,2]
[384409424,1757387456447,-480.0,0.00013972,2]
[384409425,1757387456457,-480.0,0.00013972,2]
[384409426,1757387456466,-480.0,0.00013972,2]
[384409427,1757387456476,-489.25334105,0.00013972,2]
[384409428,1757387456485,-480.0,0.00013972,2]
[384409429,1757387456495,-480.0,0.00013972,2]
[384409430,1757387456505,-480.0,0.00013972,2]
[384409431,1757387456515,-480.0,0.00013972,2]
[384409432,1757387456524,-480.0,0.00013972,2]
[384409433,1757387456534,-787.43,0.00013972,2]
[384409434,1757387456543,-710.52,0.00013972,2]
[384409435,1757387456553,-480.0,0.00013972,2]
[384409436,1757387456562,-480.0,0.00013972,2]
[384409437,1757387456572,-480.0,0.00013972,2]
[384409438,1757387456582,-151.9631052,0.00013972,2]
[384409439,1757387456591,-3531.12,0.00013972,2]
[384409440,1757387456601,-480.0,0.00013972,2]
[384409441,1757387456611,-480.0,0.00013972,2]
[384409442,1757387456620,-1754.11,0.00013972,2]
[384409443,1757387456630,-1576.64,0.00013972,2]
[384409444,1757387456640,-480.0,0.00013972,2]
[384409445,1757387456650,-480.0,0.00013972,2]
[384409446,1757387456663,-480.0,0.00013972,2]
[384409447,1757387456673,-720.82,0.00013972,2]
[384409448,1757387456683,-480.0,0.00013972,2]
[384409449,1757387456693,-600.49,0.00013972,2]
[384409450,1757387456703,-161.09185389,0.00013972,2]
[384409451,1757387456712,-480.0,0.00013972,2]
[384409452,1757387456722,-480.0,0.00013972,2]
[384409453,1757387456731,-986.27,0.00013972,2]
[384409454,1757387456743,-480.0,0.00013972,2]
[384409455,1757387456753,-480.0,0.00013972,2]
[384409456,1757387456764,-485.49624814,0.00013972,2]
[384409457,1757387456773,-480.0,0.00013972,2]
[384409458,1757387456783,-480.0,0.00013972,2]
[384409459,1757387456793,-480.0,0.00013972,2]
[384409460,1757387456803,-480.0,0.00013972,2]
[384409461,1757387456813,-480.0,0.00013972,2]
[384409462,1757387456822,-481.89618214,0.00013972,2]
[384409463,1757387456832,-480.0,0.00013972,2]
[384409464,1757387456841,-480.0,0.00013972,2]
[384409465,1757387456851,-2139.81,0.00013972,2]
[384409466,1757387456861,-490.27,0.00013972,2]
[384409467,1757387456871,-480.0,0.00013972,2]
[384409468,1757387456881,-560.04,0.00013972,2]
[384409469,1757387456891,-254.12811279,0.00013972,2]
[384409470,1757387456900,-480.0,0.00013972,2]
[384409471,1757387456910,-358.85236866,0.00013972,2]
[384409472,1757387456919,-168.0,0.00013976,2]
[384409473,1757387456929,-18408.63446995,0.0001399,2]
[384409474,1757387456939,-1586.81313363,0.0001399,2]
[384409475,1757387456949,-2991.03859093,0.00014,2]
[384409476,1757387456959,-7052.44295265,0.00014,2]
[384409494,1757387519542,593.36793042,0.00013223,2]
[384409495,1757387519564,10000.01,0.00013223,2]
[384409496,1757387519586,10000.01,0.00013223,2]
[384409497,1757387519607,10000.01,0.00013223,2]
[384409498,1757387519629,10000.01,0.00013223,2]
[384409499,1757387519650,10000.01,0.00013223,2]
[384409500,1757387519674,10000.01,0.00013223,2]
[384409501,1757387519695,10000.01,0.00013223,2]
[384409502,1757387519716,10000.01,0.00013223,2]
[384409503,1757387519892,10000.01,0.00013223,2]
[384409504,1757387523061,-300.0,0.00013222,2]
[384409505,1757387539442,1200.0,0.0001309,2]
[384409506,1757387564247,1200.0,0.0001309,2]
[384409508,1757387589437,300.0,0.00013089,2]
[384409509,1757387613138,300.0,0.00013089,2]
[384409510,1757387638045,300.0,0.00013089,2]
[384409511,1757387660803,1323.0860966,0.00013122,2]
[384409512,1757387662226,300.0,0.00013089,2]
[384409513,1757387685271,300.0,0.00013089,2]
[384409514,1757387708289,585.0,0.00013089,2]
[384409515,1757387732185,1785.0,0.00013089,2]
[384409517,1757387756007,1785.0,0.00013089,2]
[384409518,1757387779422,1785.0,0.00013089,2]
[384409519,1757387802739,1785.0,0.00013089,2]
[384409520,1757387826876,1785.0,0.00013089,2]
[384409521,1757387846031,1157.70033449,0.00013122,2]
[384409522,1757387850431,955.50206186,0.00013089,2]
[384409524,1757388036315,1012.98779267,0.00013122,2]
[384409527,1757388226893,886.36431863,0.00013122,2]
[384409530,1757388328414,869.6681726,0.00013083,2]
[384409531,1757388331451,295.10436596,0.00013123,2]
[384409534,1757388417101,885.15255491,0.00013121,2]
[384409537,1757388607385,774.50848559,0.00013121,2]
[384409581,1757388638336,-1200.0,0.00013218,2]
[384409582,1757388638347,-1200.0,0.00013219,2]
[384409583,1757388638356,-300.0,0.00013219,2]
[384409584,1757388638366,-300.0,0.00013219,2]
[384409585,1757388638375,-300.0,0.00013219,2]
[384409586,1757388638384,-300.0,0.00013219,2]
[384409587,1757388638394,-500.0,0.0001322,2]
[384409588,1757388638404,-500.0,0.0001322,2]
[384409589,1757388638413,-500.0,0.0001322,2]
[384409590,1757388638423,-500.0,0.0001322,2]
[384409591,1757388638432,-500.0,0.0001322,2]
[384409592,1757388638441,-500.0,0.0001322,2]
[384409593,1757388638450,-500.0,0.0001322,2]
[384409594,1757388638460,-500.0,0.0001322,2]
[384409595,1757388638470,-500.0,0.0001322,2]
[384409596,1757388638479,-500.0,0.0001322,2]
[384409597,1757388638488,-500.0,0.0001322,2]
[384409598,1757388638498,-500.0,0.0001322,2]
[384409599,1757388638507,-500.0,0.0001322,2]
[384409600,1757388638516,-465.34242385,0.0001322,2]
[384409601,1757388638526,-500.0,0.0001322,2]
[384409602,1757388638535,-500.0,0.0001322,2]
[384409603,1757388638544,-500.0,0.0001322,2]
[384409604,1757388638554,-500.0,0.0001322,2]
[384409605,1757388638563,-500.0,0.0001322,2]
[384409606,1757388638572,-500.0,0.0001322,2]
[384409607,1757388638581,-401.40955465,0.0001322,2]
[384409608,1757388638591,-500.0,0.0001322,2]
[384409609,1757388638601,-500.0,0.0001322,2]
[384409610,1757388638610,-500.0,0.0001322,2]
[384409611,1757388638620,-500.0,0.0001322,2]
[384409612,1757388638630,-312.18516886,0.0001322,2]
[384409613,1757388638639,-500.0,0.0001322,2]
[384409614,1757388638649,-500.0,0.0001322,2]
[384409615,1757388638659,-500.0,0.0001322,2]
[384409616,1757388638668,-249.13660837,0.0001322,2]
[384409617,1757388638677,-500.0,0.0001322,2]
[384409618,1757388638687,-500.0,0.0001322,2]
[384409619,1757388638696,-500.0,0.0001322,2]
[384409620,1757388638705,-500.0,0.0001322,2]
[384409621,1757388638715,-500.0,0.0001322,2]
[384409622,1757388638724,-500.0,0.0001322,2]
[384409623,1757388638734,-277.92040466,0.0001322,2]
[384409624,1757388638745,-500.0,0.0001322,2]
[384409625,1757388638755,-500.0,0.0001322,2]
[384409626,1757388638766,-500.0,0.0001322,2]
[384409627,1757388638776,-500.0,0.0001322,2]
[384409628,1757388638787,-500.0,0.0001322,2]
[384409629,1757388638796,-163.12236771,0.0001322,2]
[384409630,1757388638807,-500.0,0.0001322,2]
[384409631,1757388638817,-500.0,0.0001322,2]
[384409632,1757388638827,-500.0,0.0001322,2]
[384409633,1757388638836,-500.0,0.0001322,2]
[384409634,1757388638847,-500.0,0.0001322,2]
[384409635,1757388638858,-500.0,0.0001322,2]
[384409636,1757388638868,-500.0,0.0001322,2]
[384409637,1757388638878,-500.0,0.0001322,2]
[384409638,1757388638887,-500.0,0.0001322,2]
[384409639,1757388638898,-500.0,0.0001322,2]
[384409640,1757388638907,-500.0,0.0001322,2]
[384409641,1757388638918,-500.0,0.0001322,2]
[384409642,1757388638927,-500.0,0.0001322,2]
[384409643,1757388638937,-500.0,0.0001322,2]
[384409644,1757388638946,-500.0,0.0001322,2]
[384409645,1757388638957,-500.0,0.0001322,2]
[384409646,1757388638967,-500.0,0.0001322,2]
[384409647,1757388638978,-500.0,0.0001322,2]
[384409648,1757388638988,-500.0,0.0001322,2]
[384409649,1757388638997,-500.0,0.0001322,2]
[384409650,1757388639008,-642.7163876,0.0001322,2]
[384409651,1757388639018,-500.0,0.0001322,2]
[384409652,1757388639029,-500.0,0.0001322,2]
[384409653,1757388639040,-500.0,0.0001322,2]
[384409654,1757388639053,-500.0,0.0001322,2]
[384409655,1757388639064,-500.0,0.0001322,2]
[384409656,1757388639075,-500.0,0.0001322,2]
[384409657,1757388639086,-500.0,0.0001322,2]
[384409658,1757388639097,-998.77115754,0.00013221,2]
[384409659,1757388639107,-50000.0,0.00013221,2]
[384409660,1757388639120,-1000.0,0.00013222,2]
[384409661,1757388639129,-1000.0,0.00013222,2]
[384409662,1757388639140,-1000.0,0.00013222,2]
[384409663,1757388639151,-1000.0,0.00013222,2]
[384409664,1757388639161,-1000.0,0.00013222,2]
[384409665,1757388639171,-1000.0,0.00013222,2]
[384409666,1757388639181,-1000.0,0.00013222,2]
[384409667,1757388639191,-1000.0,0.00013222,2]
[384409668,1757388639201,-1000.0,0.00013222,2]
[384409669,1757388639211,-1000.0,0.00013222,2]
[384409670,1757388639221,-194.62801069,0.00013222,2]
[384409671,1757388639231,-494.08460314,0.00013222,2]
[384409672,1757388639241,-279406.54206958,0.00013223,2]
[384409673,1757388639250,-500.0,0.00013223,2]
[384409674,1757388639260,-2067.2836453,0.00013274,2]
[384409675,1757388639270,-295.10436595,0.00013304,2]
[384409676,1757388639280,-500.94915532,0.00013473,2]
[384409677,1757388639290,-500.0,0.00013473,2]
[384409678,1757388639303,-501.75686912,0.00013473,2]
[384409679,1757388639313,-500.4457902,0.00013473,2]
[384409680,1757388639323,-500.0,0.00013473,2]
[384409681,1757388639333,-500.0,0.00013473,2]
[384409682,1757388639342,-503.10320852,0.00013473,2]
[384409683,1757388639352,-295.10436595,0.00013485,2]
[384409684,1757388639362,-232.49071433,0.00013492,2]
[384409685,1757388639372,-151.0,0.00013492,2]
[384409686,1757388639382,-151.0,0.00013492,2]
[384409687,1757388639391,-151.0,0.00013492,2]
[384409688,1757388639402,-151.0,0.00013492,2]
[384409689,1757388639412,-151.0,0.00013492,2]
[384409690,1757388639422,-206.52084601,0.00013492,2]
[384409691,1757388639431,-162.380719,0.00013492,2]
[384409692,1757388639441,-500.0,0.00013497,2]
[384409693,1757388639450,-250.000001,0.000135,2]
[384409694,1757388639459,-294601.3904907,0.000135,2]
[384409695,1757388639616,-4359.00647253,0.000135,2]
[384409701,1757388640394,-6325.51949718,0.000135,2]
[384409702,1757388640408,-300.0,0.00013587,2]
[384409703,1757388640418,-300.0,0.00013587,2]
[384409704,1757388640427,-300.0,0.00013587,2]
[384409705,1757388640438,-300.0,0.00013587,2]
[384409706,1757388640447,-300.0,0.00013587,2]
[384409708,1757388640457,-300.0,0.00013587,2]
[384409709,1757388640466,-300.0,0.00013587,2]
[384409710,1757388640476,-300.0,0.00013587,2]
[384409711,1757388640485,-300.0,0.00013587,2]
[384409712,1757388640494,-300.0,0.00013587,2]
[384409713,1757388640503,-300.0,0.00013587,2]
[384409714,1757388640512,-300.0,0.00013587,2]
[384409715,1757388640522,-300.0,0.00013587,2]
[384409716,1757388640531,-300.0,0.00013587,2]
[384409717,1757388640540,-300.0,0.00013587,2]
[384409718,1757388640550,-600.0,0.00013587,2]
[384409719,1757388640559,-295.10436595,0.00013666,2]
[384409720,1757388640568,-500.0,0.00013673,2]
[384409721,1757388640577,-501.89542468,0.00013673,2]
[384409722,1757388640586,-504.4667629,0.00013673,2]
[384409723,1757388640596,-500.0,0.00013673,2]
[384409724,1757388640605,-500.0,0.00013673,2]
[384409725,1757388640615,-502.88397695,0.00013673,2]
[384409726,1757388640624,-501.4930112,0.00013673,2]
[384409727,1757388640633,-500.0,0.00013673,2]
[384409728,1757388640643,-500.89101832,0.00013673,2]
[384409729,1757388640655,-500.62602218,0.00013673,2]
[384409730,1757388640665,-246.99767804,0.00013673,2]
[384409731,1757388640675,-503.37617443,0.00013673,2]
[384409732,1757388640684,-609.53447988,0.00013673,2]
[384409733,1757388640694,-504.90293416,0.00013673,2]
[384409734,1757388640704,-500.16220813,0.00013673,2]
[384409735,1757388640714,-500.36656405,0.00013673,2]
[384409736,1757388640723,-500.57871937,0.00013673,2]
[384409737,1757388640733,-175.56447403,0.00013673,2]
[384409738,1757388640742,-500.0,0.00013673,2]
[384409739,1757388640752,-199.32647518,0.00013673,2]
[384409740,1757388640761,-157.0,0.00013673,2]
[384409741,1757388640771,-500.0,0.00013673,2]
[384409742,1757388640781,-157.0,0.00013673,2]
[384409743,1757388640790,-157.69794177,0.00013673,2]
[384409744,1757388640800,-303.51042626,0.00013673,2]
[384409745,1757388640810,-157.0,0.00013673,2]
[384409746,1757388640820,-157.0,0.00013673,2]
[384409747,1757388640829,-291.06650762,0.00013673,2]
[384409748,1757388640839,-539.0,0.00013673,2]
[384409749,1757388640848,-500.0,0.00013673,2]
[384409750,1757388640858,-157.12304223,0.00013673,2]
[384409751,1757388640867,-500.0,0.00013673,2]
[384409752,1757388640886,-157.0,0.00013673,2]
[384409753,1757388640898,-157.0,0.00013673,2]
[384409754,1757388640910,-157.0,0.00013673,2]
[384409755,1757388640920,-160.0,0.00013679,2]
[384409756,1757388640930,-203.28455737,0.00013679,2]
[384409757,1757388640940,-233.05759179,0.00013679,2]
[384409758,1757388640949,-217.65034598,0.00013679,2]
[384409759,1757388640959,-160.0,0.00013679,2]
[384409760,1757388640969,-846.80158213,0.00013679,2]
[384409761,1757388640979,-160.0,0.00013679,2]
[384409762,1757388640988,-530.79566296,0.00013679,2]
[384409763,1757388640998,-160.0,0.00013679,2]
[384409764,1757388641008,-417.15472785,0.00013679,2]
[384409765,1757388641017,-160.0,0.00013679,2]
[384409766,1757388641027,-160.0,0.00013679,2]
[384409767,1757388641037,-484.37211514,0.00013698,2]
[384409768,1757388641047,-481.1428278,0.00013698,2]
[384409769,1757388641249,-482.09967061,0.00013698,2]
[384409770,1757388641259,-480.0,0.00013698,2]
[384409771,1757388641269,-480.0,0.00013698,2]
[384409772,1757388641278,-480.0,0.00013698,2]
[384409773,1757388641287,-538.68076664,0.00013698,2]
[384409774,1757388641296,-480.0,0.00013698,2]
[384409775,1757388641306,-480.0,0.00013698,2]
[384409776,1757388641315,-480.0,0.00013698,2]
[384409777,1757388641325,-485.1450466,0.00013698,2]
[384409778,1757388641335,-480.0,0.00013698,2]
[384409779,1757388641344,-480.0,0.00013698,2]
[384409780,1757388641353,-480.0,0.00013698,2]
[384409781,1757388641363,-480.0,0.00013698,2]
[384409782,1757388641372,-255.89078452,0.00013698,2]
[384409783,1757388641382,-484.77017467,0.00013698,2]
[384409784,1757388641391,-544.97236515,0.00013698,2]
[384409785,1757388641400,-480.0,0.00013698,2]
[384409786,1757388641410,-484.41904844,0.00013698,2]
[384409787,1757388641420,-486.4080932,0.00013698,2]
[384409788,1757388641429,-480.0,0.00013698,2]
[384409789,1757388641439,-480.0,0.00013698,2]
[384409790,1757388641448,-480.0,0.00013698,2]
[384409791,1757388641457,-480.0,0.00013698,2]
[384409792,1757388641466,-484.59405022,0.00013698,2]
[384409793,1757388641476,-480.0,0.00013698,2]
[384409794,1757388641486,-480.0,0.00013698,2]
[384409795,1757388641495,-483.01136861,0.00013698,2]
[384409796,1757388641505,-480.0,0.00013698,2]
[384409797,1757388641514,-480.0,0.00013698,2]
[384409798,1757388641524,-480.0,0.00013698,2]
[384409799,1757388641534,-480.0,0.00013698,2]
[384409800,1757388641544,-482.63904112,0.00013698,2]
[384409801,1757388641553,-480.0,0.00013698,2]
[384409802,1757388641562,-480.0,0.00013698,2]
[384409803,1757388641571,-480.0,0.00013698,2]
[384409804,1757388641581,-480.0,0.00013698,2]
[384409805,1757388641590,-480.0,0.00013698,2]
[384409806,1757388641599,-480.0,0.00013698,2]
[384409807,1757388641609,-480.0,0.00013698,2]
[384409808,1757388641619,-480.0,0.00013698,2]
[384409809,1757388641628,-480.0,0.00013698,2]
[384409810,1757388641638,-322.38846823,0.00013698,2]
[384409811,1757388641647,-480.0,0.00013698,2]
[384409812,1757388641657,-480.0,0.00013698,2]
[384409813,1757388641667,-480.0,0.00013698,2]
[384409814,1757388641676,-480.0,0.00013698,2]
[384409815,1757388641685,-163.73518695,0.00013698,2]
[384409816,1757388641695,-480.0,0.00013698,2]
[384409817,1757388641704,-480.0,0.00013698,2]
[384409818,1757388641714,-480.0,0.00013698,2]
[384409819,1757388641723,-486.63788918,0.00013698,2]
[384409820,1757388641733,-482.31260379,0.00013698,2]
[384409821,1757388641742,-489.55160594,0.00013698,2]
[384409822,1757388641751,-480.0,0.00013698,2]
[384409823,1757388641761,-480.0,0.00013698,2]
[384409824,1757388641770,-593.84,0.00013698,2]
[384409825,1757388641779,-480.0,0.00013698,2]
[384409826,1757388641789,-481.93222149,0.00013698,2]
[384409827,1757388641799,-482.27153912,0.00013698,2]
[384409828,1757388641808,-652.95,0.00013698,2]
[384409829,1757388641817,-480.0,0.00013698,2]
[384409830,1757388641827,-480.0,0.00013698,2]
[384409831,1757388641836,-480.0,0.00013698,2]
[384409832,1757388641845,-480.0,0.00013698,2]
[384409833,1757388641855,-480.0,0.00013698,2]
[384409834,1757388641865,-526.17,0.00013698,2]
[384409835,1757388641875,-480.0,0.00013698,2]
[384409836,1757388641885,-480.0,0.00013698,2]
[384409837,1757388641895,-480.0,0.00013698,2]
[384409838,1757388641905,-480.0,0.00013698,2]
[384409839,1757388641915,-480.0,0.00013698,2]
[384409840,1757388641924,-480.0,0.00013698,2]
[384409841,1757388641933,-480.0,0.00013698,2]
[384409842,1757388641943,-480.0,0.00013698,2]
[384409843,1757388641952,-480.0,0.00013698,2]
[384409844,1757388641962,-480.0,0.00013698,2]
[384409845,1757388641971,-490.0,0.00013698,2]
[384409846,1757388641980,-480.0,0.00013698,2]
[384409847,1757388641990,-480.0,0.00013698,2]
[384409848,1757388642000,-480.0,0.00013698,2]
[384409849,1757388642010,-480.0,0.00013698,2]
[384409850,1757388642020,-480.0,0.00013698,2]
[384409851,1757388642029,-480.0,0.00013698,2]
[384409852,1757388642039,-480.0,0.00013698,2]
[384409853,1757388642049,-536.71,0.00013698,2]
[384409854,1757388642058,-480.0,0.00013698,2]
[384409855,1757388642068,-480.0,0.00013698,2]
[384409856,1757388642078,-494.26,0.00013698,2]
[384409857,1757388642088,-480.0,0.00013698,2]
[384409858,1757388642098,-480.0,0.00013698,2]
[384409859,1757388642107,-532.48,0.00013698,2]
[384409860,1757388642120,-480.0,0.00013698,2]
[384409861,1757388642131,-480.0,0.00013698,2]
[384409862,1757388642140,-480.0,0.00013698,2]
[384409863,1757388642151,-480.0,0.00013698,2]
[384409864,1757388642161,-480.0,0.00013698,2]
[384409865,1757388642171,-480.0,0.00013698,2]
[384409866,1757388642181,-408.3751055,0.00013698,2]
[384409867,1757388642191,-480.0,0.00013698,2]
[384409868,1757388642201,-480.0,0.00013698,2]
[384409869,1757388642211,-269.40107164,0.00013698,2]
[384409870,1757388642221,-480.0,0.00013698,2]
[384409871,1757388642230,-480.0,0.00013698,2]
[384409872,1757388642239,-480.0,0.00013698,2]
[384409873,1757388642248,-480.0,0.00013698,2]
[384409874,1757388642258,-480.0,0.00013698,2]
[384409875,1757388642267,-480.0,0.00013698,2]
[384409876,1757388642276,-480.0,0.00013698,2]
[384409877,1757388642286,-480.0,0.00013698,2]
[384409878,1757388642296,-280.75142809,0.00013698,2]
[384409879,1757388642305,-480.0,0.00013698,2]
[384409880,1757388642315,-480.0,0.00013698,2]
[384409881,1757388642325,-480.0,0.00013698,2]
[384409882,1757388642334,-480.0,0.00013698,2]
[384409883,1757388642345,-480.0,0.00013698,2]
[384409884,1757388642354,-612.88,0.00013698,2]
[384409885,1757388642364,-397.24280448,0.00013698,2]
[384409886,1757388642374,-480.0,0.00013698,2]
[384409887,1757388642383,-482.98816849,0.00013698,2]
[384409888,1757388642393,-482.41538039,0.00013698,2]
[384409889,1757388642403,-481.96674809,0.00013698,2]
[384409890,1757388642412,-480.0,0.00013698,2]
[384409891,1757388642423,-485.97299578,0.00013698,2]